[Event "FIDE U16 Olympiad_boards_1-80"]
[Site "Eindhoven, Netherlands"]
[Date "2023.08.14"]
[Round "2.24"]
[White "Kaldarova, Ayaulym"]
[Black "Abdinova, Narmin"]
[Result "0-1"]
[TimeControl "2700+10"]
[WhiteElo "1845"]
[BlackElo "1804"]

1. Nf3 {[%clk 00:45:15]} {[%emt 00:00:05]} d5 {[%clk 00:45:11]} {[%emt
00:00:10]} 2. g3 {[%clk 00:45:22]} {[%emt 00:00:03]} Nc6 {[%clk 00:45:16]}
{[%emt 00:00:04]} 3. d4 {[%clk 00:45:23]} {[%emt 00:00:09]} Bf5 {[%clk
00:45:18]} {[%emt 00:00:08]} 4. c4 {[%clk 00:45:31]} {[%emt 00:00:03]} e6
{[%clk 00:44:57]} {[%emt 00:00:30]} 5. Bg2 {[%clk 00:45:38]} {[%emt 00:00:04]}
Nb4 {[%clk 00:42:46]} {[%emt 00:02:21]} 6. O-O {[%clk 00:45:11]} {[%emt
00:00:37]} Nc2 {[%clk 00:41:58]} {[%emt 00:00:58]} 7. cxd5 {[%clk 00:43:50]}
{[%emt 00:01:30]} Nxa1 {[%clk 00:41:58]} {[%emt 00:00:09]} 8. e4 {[%clk
00:42:54]} {[%emt 00:01:08]} Bxe4 {[%clk 00:36:14]} {[%emt 00:05:55]} 9. dxe6
{[%clk 00:42:09]} {[%emt 00:00:53]} fxe6 {[%clk 00:33:05]} {[%emt 00:03:20]} 10.
Nc3 {[%clk 00:37:25]} {[%emt 00:04:54]} Bd5 {[%clk 00:26:32]} {[%emt 00:06:43]}
11. Re1 {[%clk 00:32:58]} {[%emt 00:04:37]} Be7 {[%clk 00:25:20]} {[%emt
00:01:22]} 12. Nxd5 {[%clk 00:28:06]} {[%emt 00:05:02]} exd5 {[%clk 00:25:20]}
{[%emt 00:00:09]} 13. Bg5 {[%clk 00:25:21]} {[%emt 00:02:56]} h6 {[%clk
00:23:46]} {[%emt 00:01:44]} 14. Bd2 {[%clk 00:23:34]} {[%emt 00:01:57]} Nf6
{[%clk 00:19:37]} {[%emt 00:04:18]} 15. Bb4 {[%clk 00:18:26]} {[%emt 00:05:19]}
Ne4 {[%clk 00:19:45]} {[%emt 00:00:01]} 16. Bxe7 {[%clk 00:18:29]} {[%emt
00:00:08]} Qxe7 {[%clk 00:19:41]} {[%emt 00:00:14]} 17. Nh4 {[%clk 00:17:55]}
{[%emt 00:00:44]} O-O {[%clk 00:16:58]} {[%emt 00:02:52]} 18. f3 {[%clk
00:16:43]} {[%emt 00:01:23]} Qb4 {[%clk 00:17:07]} {[%emt 00:00:01]} 19. Re2
{[%clk 00:10:01]} {[%emt 00:06:52]} Nd6 {[%clk 00:12:52]} {[%emt 00:04:24]} 20.
f4 {[%clk 00:07:42]} {[%emt 00:02:30]} Ne4 {[%clk 00:10:30]} {[%emt 00:02:32]}
21. Nf3 {[%clk 00:07:04]} {[%emt 00:00:47]} c5 {[%clk 00:08:05]} {[%emt
00:02:36]} 22. Qxa1 {[%clk 00:05:51]} {[%emt 00:01:23]} cxd4 {[%clk 00:08:13]}
{[%emt 00:00:02]} 23. Qd1 {[%clk 00:05:21]} {[%emt 00:00:40]} Rac8 {[%clk
00:08:22]} {[%emt 00:00:01]} 24. Bh3 {[%clk 00:04:26]} {[%emt 00:01:05]} d3
{[%clk 00:03:51]} {[%emt 00:04:41]} 25. Qxd3 {[%clk 00:04:20]} {[%emt
00:00:16]} Rc1+ {[%clk 00:03:59]} 26. Kg2 {[%clk 00:04:23]} {[%emt 00:00:07]}
Rd8 {[%clk 00:01:45]} {[%emt 00:02:24]} 27. Be6+ {[%clk 00:04:12]} {[%emt
00:00:22]} Kf8 {[%clk 00:00:12]} {[%emt 00:01:43]} 28. Ne5 {[%clk 00:02:55]}
{[%emt 00:01:27]} Qb6 {[%clk 00:00:21]} {[%emt 00:00:01]} 29. Ng6+ {[%clk
00:00:43]} {[%emt 00:02:22]} Ke8 {[%clk 00:00:29]} 30. Bxd5 {[%clk 00:00:27]}
{[%emt 00:00:27]} Qxg6 {[%clk 00:00:27]} {[%emt 00:00:12]} 31. Rxe4+ {[%clk
00:00:20]} {[%emt 00:00:18]} Kf8 {[%clk 00:00:29]} {[%emt 00:00:06]} 32. f5
{[%clk 00:00:13]} {[%emt 00:00:18]} Qd6 {[%clk 00:00:20]} {[%emt 00:00:19]} 33.
Rd4 {[%clk 00:00:13]} {[%emt 00:00:10]} Rc5 {[%clk 00:00:21]} {[%emt 00:00:09]}
34. f6 {[%clk 00:00:21]} {[%emt 00:00:02]} Rxd5 {[%clk 00:00:19]} {[%emt
00:00:12]} 35. fxg7+ {[%clk 00:00:29]} {[%emt 00:00:03]} Kg8 {[%clk 00:00:17]}
{[%emt 00:00:10]} 36. Qb3 {[%clk 00:00:24]} {[%emt 00:00:16]} Qe5 {[%clk
00:00:16]} {[%emt 00:00:11]} 37. Rf4 {[%clk 00:00:15]} {[%emt 00:00:19]} Qe2+
{[%clk 00:00:20]} {[%emt 00:00:04]} 38. Kh3 {[%clk 00:00:22]} {[%emt 00:00:04]}
Qe6+ {[%clk 00:00:29]} {[%emt 00:00:02]} 39. Kh4 {[%clk 00:00:11]} {[%emt
00:00:21]} Re5 {[%clk 00:00:19]} {[%emt 00:00:18]} 40. Qf3 {[%clk 00:00:15]}
{[%emt 00:00:08]} Qe7+ {[%clk 00:00:22]} {[%emt 00:00:07]} 41. Kh3 {[%clk
00:00:24]} {[%emt 00:00:01]} Kxg7 {[%clk 00:00:24]} {[%emt 00:00:08]} 42. Qc3
{[%clk 00:00:20]} {[%emt 00:00:15]} Kh7 {[%clk 00:00:12]} {[%emt 00:00:22]} 43.
Qc2+ {[%clk 00:00:23]} {[%emt 00:00:06]} Kh8 {[%clk 00:00:17]} {[%emt
00:00:06]} 44. Qc3 {[%clk 00:00:23]} {[%emt 00:00:09]} Qg7 {[%clk 00:00:26]}
{[%emt 00:00:01]} 45. Qf3 {[%clk 00:00:19]} {[%emt 00:00:14]} Re7 {[%clk
00:00:14]} {[%emt 00:00:22]} 46. Qh5 {[%clk 00:00:15]} {[%emt 00:00:15]} Re5
{[%clk 00:00:11]} {[%emt 00:00:12]} 47. Qf3 {[%clk 00:00:18]} {[%emt 00:00:07]}
Rd7 {[%clk 00:00:17]} {[%emt 00:00:04]} 48. Rf8+ {[%clk 00:00:20]} {[%emt
00:00:08]} Kh7 {[%clk 00:00:26]} 49. Rf4 {[%clk 00:00:24]} {[%emt 00:00:06]}
Qg6 {[%clk 00:00:23]} {[%emt 00:00:12]} 50. Kg2 {[%clk 00:00:13]} {[%emt
00:00:23]} Rd2+ {[%clk 00:00:28]} {[%emt 00:00:04]} 51. Kh3 {[%clk 00:00:17]}
{[%emt 00:00:06]} Qe6+ {[%clk 00:00:17]} {[%emt 00:00:21]} 52. Rg4 {[%clk
00:00:12]} {[%emt 00:00:15]} Rh5# {[%clk 00:00:23]} {[%emt 00:00:03]} 0-1

[Event "FIDE U16 Olympiad_boards_1-80"]
[Site "Eindhoven, Netherlands"]
[Date "2023.08.14"]
[Round "2.25"]
[White "Makridis, Dimitrios"]
[Black "Pichon, Ewen"]
[Result "1-0"]
[TimeControl "2700+10"]
[WhiteElo "2264"]
[BlackElo "2194"]

1. e4 {[%clk 00:45:15]} {[%emt 00:00:05]} c5 {[%clk 00:45:16]} {[%emt
00:00:05]} 2. Nf3 {[%clk 00:45:19]} {[%emt 00:00:06]} e6 {[%clk 00:45:24]}
{[%emt 00:00:02]} 3. d4 {[%clk 00:45:22]} {[%emt 00:00:07]} cxd4 {[%clk
00:45:32]} {[%emt 00:00:02]} 4. Nxd4 {[%clk 00:45:27]} {[%emt 00:00:05]} Nf6
{[%clk 00:45:38]} {[%emt 00:00:03]} 5. Nc3 {[%clk 00:45:33]} {[%emt 00:00:05]}
Nc6 {[%clk 00:45:47]} {[%emt 00:00:01]} 6. a3 {[%clk 00:45:28]} {[%emt
00:00:16]} Be7 {[%clk 00:44:58]} {[%emt 00:00:58]} 7. Nxc6 {[%clk 00:45:07]}
{[%emt 00:00:31]} bxc6 {[%clk 00:45:06]} {[%emt 00:00:02]} 8. e5 {[%clk
00:45:10]} {[%emt 00:00:07]} Nd5 {[%clk 00:45:09]} {[%emt 00:00:07]} 9. Qg4
{[%clk 00:42:51]} {[%emt 00:02:28]} g6 {[%clk 00:41:36]} {[%emt 00:03:44]} 10.
Bd2 {[%clk 00:25:35]} {[%emt 00:17:25]} Qc7 {[%clk 00:34:13]} {[%emt 00:07:33]}
11. Qg3 {[%clk 00:24:30]} {[%emt 00:01:15]} O-O {[%clk 00:29:42]} {[%emt
00:04:41]} 12. Ne4 {[%clk 00:19:48]} {[%emt 00:04:52]} f5 {[%clk 00:19:37]}
{[%emt 00:10:15]} 13. exf6 {[%clk 00:17:10]} {[%emt 00:02:49]} Qxg3 {[%clk
00:18:20]} {[%emt 00:01:26]} 14. f7+ {[%clk 00:17:14]} {[%emt 00:00:06]} Rxf7
{[%clk 00:18:02]} {[%emt 00:00:28]} 15. hxg3 {[%clk 00:17:20]} {[%emt
00:00:04]} a5 {[%clk 00:15:40]} {[%emt 00:02:34]} 16. Ng5 {[%clk 00:16:17]}
{[%emt 00:01:12]} Bxg5 {[%clk 00:15:44]} {[%emt 00:00:06]} 17. Bxg5 {[%clk
00:16:24]} {[%emt 00:00:03]} Ba6 {[%clk 00:15:40]} {[%emt 00:00:14]} 18. c4
{[%clk 00:14:48]} {[%emt 00:01:46]} Nb6 {[%clk 00:15:26]} {[%emt 00:00:24]} 19.
Rh4 {[%clk 00:14:42]} {[%emt 00:00:15]} d5 {[%clk 00:12:25]} {[%emt 00:03:12]}
20. b3 {[%clk 00:10:38]} {[%emt 00:04:14]} a4 {[%clk 00:10:56]} {[%emt
00:01:39]} 21. Be3 {[%clk 00:10:16]} {[%emt 00:00:31]} c5 {[%clk 00:07:18]}
{[%emt 00:03:50]} 22. Bxc5 {[%clk 00:06:45]} {[%emt 00:03:41]} Nd7 {[%clk
00:07:21]} {[%emt 00:00:06]} 23. Be3 {[%clk 00:06:52]} {[%emt 00:00:02]} axb3
{[%clk 00:07:12]} {[%emt 00:00:20]} 24. cxd5 {[%clk 00:06:47]} {[%emt
00:00:15]} b2 {[%clk 00:06:36]} {[%emt 00:00:46]} 25. Rb1 {[%clk 00:06:48]}
{[%emt 00:00:08]} exd5 {[%clk 00:06:32]} {[%emt 00:00:15]} 26. Ra4 {[%clk
00:06:36]} {[%emt 00:00:21]} d4 {[%clk 00:04:29]} {[%emt 00:02:14]} 27. Rxa6
{[%clk 00:06:34]} {[%emt 00:00:13]} Rxa6 {[%clk 00:04:30]} {[%emt 00:00:08]} 28.
Bxa6 {[%clk 00:06:40]} {[%emt 00:00:04]} Re7 {[%clk 00:04:39]} 29. Kd2 {[%clk
00:05:03]} {[%emt 00:01:46]} dxe3+ {[%clk 00:04:48]} {[%emt 00:00:02]} 30. fxe3
{[%clk 00:05:12]} Nc5 {[%clk 00:04:51]} {[%emt 00:00:07]} 31. Bc4+ {[%clk
00:05:08]} {[%emt 00:00:14]} Kg7 {[%clk 00:05:00]} {[%emt 00:00:01]} 32. Rxb2
{[%clk 00:05:03]} {[%emt 00:00:16]} Ne4+ {[%clk 00:05:08]} {[%emt 00:00:02]} 33.
Kd3 {[%clk 00:05:03]} {[%emt 00:00:10]} Nxg3 {[%clk 00:05:17]} {[%emt
00:00:01]} 34. Bd5 {[%clk 00:04:48]} {[%emt 00:00:22]} Kf6 {[%clk 00:04:13]}
{[%emt 00:01:15]} 35. Rb7 {[%clk 00:04:13]} {[%emt 00:00:45]} Re5 {[%clk
00:04:22]} {[%emt 00:00:02]} 36. e4 {[%clk 00:04:09]} {[%emt 00:00:14]} h6
{[%clk 00:03:46]} {[%emt 00:00:46]} 37. a4 {[%clk 00:04:10]} {[%emt 00:00:09]}
Nh5 {[%clk 00:03:50]} {[%emt 00:00:06]} 38. Kd4 {[%clk 00:03:51]} {[%emt
00:00:29]} Re8 {[%clk 00:03:56]} {[%emt 00:00:05]} 39. a5 {[%clk 00:03:52]}
{[%emt 00:00:08]} Nf4 {[%clk 00:04:00]} {[%emt 00:00:06]} 40. a6 {[%emt
00:01:08]} Ne2+ {[%clk 00:03:45]} 41. Kc5 {[%clk 00:02:55]} {[%emt 00:00:33]}
Rc8+ {[%clk 00:03:47]} {[%emt 00:00:09]} 42. Kb6 {[%clk 00:02:55]} {[%emt
00:00:09]} Nc3 {[%clk 00:02:09]} {[%emt 00:01:49]} 43. a7 {[%clk 00:02:59]}
{[%emt 00:00:05]} Na4+ {[%clk 00:02:06]} {[%emt 00:00:13]} 44. Ka5 {[%clk
00:03:03]} {[%emt 00:00:06]} 1-0

[Event "FIDE U16 Olympiad_boards_1-80"]
[Site "Eindhoven, Netherlands"]
[Date "2023.08.14"]
[Round "2.26"]
[White "Schippke, Manon"]
[Black "Magkalakis, Stefanos"]
[Result "0-1"]
[TimeControl "2700+10"]
[WhiteElo "2120"]
[BlackElo "2091"]

1. d4 {[%clk 00:45:17]} {[%emt 00:00:03]} Nf6 {[%clk 00:45:09]} {[%emt
00:00:12]} 2. c4 {[%clk 00:45:26]} {[%emt 00:00:02]} e6 {[%clk 00:45:13]}
{[%emt 00:00:06]} 3. Nc3 {[%clk 00:45:33]} {[%emt 00:00:02]} Bb4 {[%clk
00:45:17]} {[%emt 00:00:06]} 4. Qc2 {[%clk 00:45:41]} {[%emt 00:00:02]} d6
{[%clk 00:44:57]} {[%emt 00:00:29]} 5. Bd2 {[%clk 00:45:44]} {[%emt 00:00:08]}
Nc6 {[%clk 00:41:18]} {[%emt 00:03:49]} 6. Nf3 {[%clk 00:45:51]} {[%emt
00:00:03]} e5 {[%clk 00:41:08]} {[%emt 00:00:20]} 7. a3 {[%clk 00:43:15]}
{[%emt 00:02:47]} Bxc3 {[%clk 00:39:45]} {[%emt 00:01:32]} 8. Bxc3 {[%clk
00:43:22]} {[%emt 00:00:04]} Qe7 {[%clk 00:39:16]} {[%emt 00:00:39]} 9. e3
{[%clk 00:40:08]} {[%emt 00:03:24]} O-O {[%clk 00:35:45]} {[%emt 00:03:40]} 10.
Be2 {[%clk 00:38:55]} {[%emt 00:01:23]} Bg4 {[%clk 00:33:43]} {[%emt 00:02:12]}
11. d5 {[%clk 00:36:57]} {[%emt 00:02:08]} Nb8 {[%clk 00:32:29]} {[%emt
00:01:24]} 12. h3 {[%clk 00:35:03]} {[%emt 00:02:04]} Bh5 {[%clk 00:28:21]}
{[%emt 00:04:18]} 13. b4 {[%clk 00:30:29]} {[%emt 00:04:44]} Bg6 {[%clk
00:26:31]} {[%emt 00:02:01]} 14. Qb3 {[%clk 00:30:35]} {[%emt 00:00:04]} Ne4
{[%clk 00:26:23]} {[%emt 00:00:18]} 15. Bb2 {[%clk 00:30:40]} {[%emt 00:00:04]}
Nd7 {[%clk 00:25:22]} {[%emt 00:01:11]} 16. O-O {[%clk 00:29:54]} {[%emt
00:00:57]} b6 {[%clk 00:21:44]} {[%emt 00:03:47]} 17. Bd3 {[%clk 00:28:00]}
{[%emt 00:02:04]} Nec5 {[%clk 00:21:39]} {[%emt 00:00:14]} 18. bxc5 {[%clk
00:27:32]} {[%emt 00:00:39]} Nxc5 {[%clk 00:21:46]} {[%emt 00:00:03]} 19. Qd1
{[%clk 00:27:32]} {[%emt 00:00:11]} Bxd3 {[%clk 00:21:43]} {[%emt 00:00:13]} 20.
Re1 {[%clk 00:27:35]} {[%emt 00:00:07]} Bxc4 {[%clk 00:21:21]} {[%emt
00:00:31]} 21. Bc3 {[%clk 00:27:10]} {[%emt 00:00:35]} Bb3 {[%clk 00:19:36]}
{[%emt 00:01:55]} 22. Qd2 {[%clk 00:24:20]} {[%emt 00:03:01]} Ne4 {[%clk
00:18:50]} {[%emt 00:00:56]} 23. Qc1 {[%clk 00:22:53]} {[%emt 00:01:36]} Nxc3
{[%clk 00:17:57]} {[%emt 00:01:03]} 24. Qxc3 {[%clk 00:22:58]} {[%emt
00:00:04]} Bxd5 {[%clk 00:18:03]} {[%emt 00:00:05]} 25. e4 {[%clk 00:23:07]}
{[%emt 00:00:02]} Be6 {[%clk 00:18:01]} {[%emt 00:00:11]} 26. Rac1 {[%clk
00:23:11]} {[%emt 00:00:06]} c5 {[%clk 00:14:53]} {[%emt 00:03:18]} 27. Nd2
{[%clk 00:23:18]} {[%emt 00:00:03]} b5 {[%clk 00:13:27]} {[%emt 00:01:36]} 28.
f4 {[%clk 00:22:48]} {[%emt 00:00:41]} f6 {[%clk 00:13:14]} {[%emt 00:00:23]}
29. f5 {[%clk 00:21:16]} {[%emt 00:01:42]} Bf7 {[%clk 00:13:18]} {[%emt
00:00:05]} 30. Nf1 {[%clk 00:20:22]} {[%emt 00:01:04]} a5 {[%clk 00:13:18]}
{[%emt 00:00:10]} 31. Ne3 {[%clk 00:20:09]} {[%emt 00:00:23]} b4 {[%clk
00:12:52]} {[%emt 00:00:35]} 32. Qd3 {[%clk 00:20:18]} {[%emt 00:00:02]} Rab8
{[%clk 00:10:37]} {[%emt 00:02:25]} 33. Red1 {[%clk 00:19:27]} {[%emt
00:01:01]} bxa3 {[%clk 00:09:35]} {[%emt 00:01:12]} 34. Nc4 {[%clk 00:16:18]}
{[%emt 00:03:19]} Bxc4 {[%clk 00:05:27]} {[%emt 00:04:18]} 35. Qxc4+ {[%clk
00:16:27]} {[%emt 00:00:02]} Qf7 {[%clk 00:05:25]} {[%emt 00:00:12]} 36. Rd5
{[%clk 00:16:36]} Rb4 {[%clk 00:05:25]} {[%emt 00:00:09]} 37. Qd3 {[%clk
00:14:13]} {[%emt 00:02:33]} a2 {[%clk 00:04:33]} {[%emt 00:01:02]} 38. Qc2
{[%clk 00:14:21]} {[%emt 00:00:01]} Rfb8 {[%clk 00:03:51]} {[%emt 00:00:52]} 39.
Qxa2 {[%clk 00:14:02]} {[%emt 00:00:30]} Rxe4 {[%clk 00:03:58]} {[%emt
00:00:03]} 40. Qd2 {[%emt 00:00:30]} Rd4 {[%clk 00:03:32]} {[%emt 00:00:34]} 41.
Rxd4 {[%clk 00:13:52]} {[%emt 00:00:02]} exd4 {[%clk 00:03:41]} {[%emt
00:00:01]} 42. Qxa5 {[%clk 00:13:04]} {[%emt 00:00:59]} h6 {[%clk 00:03:43]}
{[%emt 00:00:08]} 43. Qa4 {[%clk 00:08:42]} {[%emt 00:04:32]} Qd5 {[%clk
00:02:54]} {[%emt 00:00:59]} 44. Re1 {[%clk 00:08:48]} {[%emt 00:00:04]} Qxf5
{[%clk 00:02:32]} {[%emt 00:00:31]} 45. Qc6 {[%clk 00:08:44]} {[%emt 00:00:13]}
Qg6 {[%clk 00:02:14]} {[%emt 00:00:29]} 46. Kh2 {[%clk 00:07:03]} {[%emt
00:01:52]} f5 {[%clk 00:01:27]} {[%emt 00:00:56]} 47. Qd5+ {[%clk 00:07:05]}
{[%emt 00:00:08]} Qf7 {[%clk 00:00:54]} {[%emt 00:00:43]} 48. Qxd6 {[%clk
00:07:06]} {[%emt 00:00:08]} Re8 {[%clk 00:00:52]} {[%emt 00:00:13]} 49. Rxe8+
{[%clk 00:06:19]} {[%emt 00:00:57]} Qxe8 {[%clk 00:01:01]} 50. Qxc5 {[%clk
00:05:41]} {[%emt 00:00:48]} Qe4 {[%clk 00:01:08]} {[%emt 00:00:03]} 51. Qc8+
{[%clk 00:04:41]} {[%emt 00:01:10]} Kh7 {[%clk 00:01:18]} {[%emt 00:00:01]} 52.
Qd7 {[%clk 00:04:48]} {[%emt 00:00:03]} d3 {[%clk 00:01:19]} {[%emt 00:00:09]}
53. Kh1 {[%clk 00:04:57]} f4 {[%clk 00:00:48]} {[%emt 00:00:40]} 54. Kh2 {[%clk
00:04:33]} {[%emt 00:00:34]} f3 {[%clk 00:00:54]} {[%emt 00:00:05]} 55. gxf3
{[%clk 00:04:42]} {[%emt 00:00:01]} Qxf3 {[%clk 00:01:02]} {[%emt 00:00:01]} 56.
Kg1 {[%clk 00:04:48]} {[%emt 00:00:04]} Qe3+ {[%clk 00:00:51]} {[%emt
00:00:21]} 57. Kh1 {[%clk 00:04:47]} {[%emt 00:00:11]} Qe4+ {[%clk 00:00:46]}
{[%emt 00:00:15]} 58. Kh2 {[%clk 00:04:50]} {[%emt 00:00:07]} h5 {[%clk
00:00:51]} {[%emt 00:00:05]} 59. Kg1 {[%clk 00:04:33]} {[%emt 00:00:27]} Qe3+
{[%clk 00:00:45]} {[%emt 00:00:16]} 60. Kh2 {[%clk 00:04:41]} {[%emt 00:00:03]}
d2 {[%clk 00:00:45]} {[%emt 00:00:09]} 61. h4 {[%clk 00:04:08]} {[%emt
00:00:44]} Qe2+ {[%clk 00:00:50]} {[%emt 00:00:04]} 62. Kg3 {[%clk 00:04:11]}
{[%emt 00:00:08]} Qg4+ {[%clk 00:00:58]} {[%emt 00:00:02]} 0-1

[Event "FIDE U16 Olympiad_boards_1-80"]
[Site "Eindhoven, Netherlands"]
[Date "2023.08.14"]
[Round "2.27"]
[White "Gkavardinas, Antonios"]
[Black "Bat, Bilguun"]
[Result "0-1"]
[TimeControl "2700+10"]
[WhiteElo "1978"]
[BlackElo "2220"]

1. e4 {[%clk 00:45:17]} {[%emt 00:00:02]} c5 {[%clk 00:45:12]} {[%emt
00:00:07]} 2. Nf3 {[%clk 00:45:21]} {[%emt 00:00:07]} d6 {[%clk 00:45:16]}
{[%emt 00:00:05]} 3. d4 {[%clk 00:45:22]} {[%emt 00:00:11]} cxd4 {[%clk
00:45:21]} {[%emt 00:00:04]} 4. Nxd4 {[%clk 00:45:25]} {[%emt 00:00:08]} Nf6
{[%clk 00:45:26]} {[%emt 00:00:04]} 5. Nc3 {[%clk 00:45:22]} {[%emt 00:00:13]}
a6 {[%clk 00:45:28]} {[%emt 00:00:08]} 6. Be3 {[%clk 00:45:24]} {[%emt
00:00:09]} e5 {[%clk 00:45:16]} {[%emt 00:00:21]} 7. Nb3 {[%clk 00:45:32]}
{[%emt 00:00:02]} Be7 {[%clk 00:44:42]} {[%emt 00:00:44]} 8. f3 {[%clk
00:45:19]} {[%emt 00:00:23]} Be6 {[%clk 00:44:40]} {[%emt 00:00:11]} 9. Qd2
{[%clk 00:45:11]} {[%emt 00:00:19]} h5 {[%clk 00:44:09]} {[%emt 00:00:40]} 10.
Nd5 {[%clk 00:44:18]} {[%emt 00:01:04]} Bxd5 {[%clk 00:43:49]} {[%emt
00:00:29]} 11. exd5 {[%clk 00:44:25]} {[%emt 00:00:04]} Nbd7 {[%clk 00:43:49]}
{[%emt 00:00:10]} 12. O-O-O {[%clk 00:41:28]} {[%emt 00:03:08]} Qc7 {[%clk
00:43:30]} {[%emt 00:00:27]} 13. c4 {[%clk 00:35:27]} {[%emt 00:06:12]} a5
{[%clk 00:43:18]} {[%emt 00:00:22]} 14. Kb1 {[%clk 00:34:49]} {[%emt 00:00:48]}
O-O {[%clk 00:42:04]} {[%emt 00:01:24]} 15. Bd3 {[%clk 00:32:40]} {[%emt
00:02:20]} a4 {[%clk 00:37:51]} {[%emt 00:04:22]} 16. Nc1 {[%clk 00:32:21]}
{[%emt 00:00:30]} b5 {[%clk 00:36:38]} {[%emt 00:01:22]} 17. cxb5 {[%clk
00:29:34]} {[%emt 00:02:58]} Nb6 {[%clk 00:35:35]} {[%emt 00:01:13]} 18. Bxb6
{[%clk 00:23:20]} {[%emt 00:06:23]} Qxb6 {[%clk 00:35:43]} {[%emt 00:00:02]} 19.
Bc4 {[%clk 00:19:32]} {[%emt 00:03:58]} Rfc8 {[%clk 00:34:04]} {[%emt
00:01:50]} 20. Qd3 {[%clk 00:18:55]} {[%emt 00:00:46]} Qc5 {[%clk 00:22:16]}
{[%emt 00:11:58]} 21. b3 {[%clk 00:18:38]} {[%emt 00:00:28]} Rcb8 {[%clk
00:21:43]} {[%emt 00:00:43]} 22. Rhe1 {[%clk 00:16:53]} {[%emt 00:01:55]} Bd8
{[%clk 00:19:18]} {[%emt 00:02:34]} 23. Re2 {[%clk 00:14:10]} {[%emt 00:02:53]}
Qa7 {[%clk 00:16:16]} {[%emt 00:03:13]} 24. Rc2 {[%clk 00:13:03]} {[%emt
00:01:17]} Bb6 {[%clk 00:16:23]} {[%emt 00:00:03]} 25. b4 {[%clk 00:11:12]}
{[%emt 00:02:01]} Re8 {[%clk 00:14:23]} {[%emt 00:02:09]} 26. Re1 {[%clk
00:09:44]} {[%emt 00:01:38]} Bf2 {[%clk 00:13:25]} {[%emt 00:01:09]} 27. Ree2
{[%clk 00:08:30]} {[%emt 00:01:23]} Bg1 {[%clk 00:13:23]} {[%emt 00:00:13]} 28.
g3 {[%clk 00:07:05]} {[%emt 00:01:35]} Bd4 {[%clk 00:12:43]} {[%emt 00:00:49]}
29. a3 {[%clk 00:06:05]} {[%emt 00:01:10]} Qb7 {[%clk 00:12:43]} {[%emt
00:00:11]} 30. Na2 {[%clk 00:05:19]} {[%emt 00:00:55]} Rac8 {[%clk 00:09:01]}
{[%emt 00:03:52]} 31. Nc3 {[%clk 00:04:53]} {[%emt 00:00:36]} Bxc3 {[%clk
00:05:50]} {[%emt 00:03:21]} 32. Qxc3 {[%clk 00:02:48]} {[%emt 00:02:15]} Nxd5
{[%clk 00:04:35]} {[%emt 00:01:25]} 33. Bxd5 {[%clk 00:02:01]} {[%emt
00:00:57]} Qxd5 {[%clk 00:04:41]} {[%emt 00:00:04]} 34. Qxc8 {[%clk 00:02:05]}
{[%emt 00:00:06]} Rxc8 {[%clk 00:04:50]} {[%emt 00:00:01]} 35. Rxc8+ {[%emt
00:00:02]} Kh7 36. Re3 {[%clk 00:01:36]} {[%emt 00:00:36]} Qxb5 {[%clk
00:04:43]} {[%emt 00:00:18]} 37. Rc1 {[%clk 00:01:03]} {[%emt 00:00:42]} f6
{[%clk 00:03:46]} {[%emt 00:01:07]} 38. Kb2 {[%clk 00:00:26]} {[%emt 00:00:47]}
d5 {[%clk 00:03:38]} {[%emt 00:00:18]} 39. Rec3 {[%clk 00:00:13]} {[%emt
00:00:23]} d4 {[%clk 00:03:48]} {[%emt 00:00:01]} 40. Rc5 {[%clk 00:00:18]}
{[%emt 00:00:04]} Qe2+ {[%clk 00:03:55]} {[%emt 00:00:04]} 41. R1c2 {[%clk
00:00:23]} {[%emt 00:00:05]} Qxf3 {[%clk 00:03:59]} {[%emt 00:00:05]} 42. b5
{[%clk 00:00:23]} {[%emt 00:00:11]} Qb3+ {[%clk 00:03:59]} {[%emt 00:00:09]} 43.
Kc1 {[%clk 00:00:25]} {[%emt 00:00:09]} Qxa3+ {[%clk 00:04:08]} 44. Kd1 {[%clk
00:00:23]} {[%emt 00:00:11]} Qb3 {[%clk 00:04:10]} {[%emt 00:00:08]} 45. Kd2
{[%clk 00:00:14]} {[%emt 00:00:19]} a3 {[%clk 00:04:01]} {[%emt 00:00:19]} 46.
Rc1 {[%clk 00:00:13]} {[%emt 00:00:12]} a2 {[%clk 00:03:30]} {[%emt 00:00:41]}
47. R5c2 {[%clk 00:00:14]} {[%emt 00:00:09]} Qb4+ {[%clk 00:03:38]} {[%emt
00:00:02]} 48. Kd1 {[%clk 00:00:17]} {[%emt 00:00:07]} Qxb5 {[%clk 00:03:47]}
49. Kd2 {[%clk 00:00:12]} {[%emt 00:00:15]} Qb1 {[%clk 00:03:22]} {[%emt
00:00:35]} 0-1